bitfinex/quotes_SOLUSD_20250517
["timestamp","ask_amount","ask_price","bid_price","bid_amount"]
[1747522526380,6.05301655,165.21,165.12,2.85395306]
[1747522526970,26.0,165.22,165.13,6.05583479]
[1747522526971,32.05254281,165.22,165.13,6.05583479]
[1747522530396,10.32399057,165.21,165.13,6.05583479]
[1747522530581,10.32399057,165.21,165.14,19.4]
[1747522530783,10.32399057,165.19,165.13,19.4]
[1747522531991,6.05400169,165.18,165.13,19.4]
[1747522532174,6.05400169,165.18,165.13,25.455762]
[1747522532682,10.32399057,165.21,165.13,25.455762]
[1747522532891,51.4553306,165.22,165.13,25.455762]
[1747522533311,10.32399057,165.23,165.13,25.455762]
[1747522533606,6.0521697,165.23,165.13,26.66647527]
[1747522533806,6.0521697,165.23,165.13,46.06647527]
[1747522534774,6.0521697,165.23,165.13,61.20606226]
[1747522535906,16.37616027,165.23,165.13,61.20606226]
[1747522537802,6.0521697,165.23,165.13,106.50606226]
[1747522539904,26.0,165.23,165.13,106.50606226]
[1747522540309,6.05187398,165.24,165.13,106.50606226]
[1747522543006,6.05187398,165.24,165.15,21.19285497]
[1747522543306,6.05187398,165.24,165.15,22.40341178]
[1747522543804,6.05117085,165.26,165.17,1.5352]
[1747522544002,6.05117085,165.26,165.17,48.04558244]
[1747522545016,6.05117085,165.26,165.18,6.05400169]
[1747522545215,32.0508343,165.27,165.19,19.4]
[1747522546192,32.0508343,165.27,165.2,6.05326876]
[1747522547716,42.37482487,165.27,165.2,6.05326876]
[1747522548718,32.0508343,165.27,165.2,6.05326876]
[1747522550392,32.0508343,165.27,165.19,25.45351414]
[1747522550713,42.37482487,165.27,165.17,48.04558244]
[1747522550903,10.32399057,165.26,165.18,25.45389796]
[1747522551295,10.32399057,165.25,165.18,19.4]
[1747522551694,10.32399057,165.26,165.18,19.4]
[1747522551901,28.97363943,165.26,165.18,19.4]
[1747522552401,6.05143721,165.25,165.17,52.88943009]
[1747522552608,6.05143721,165.25,165.18,19.4]
[1747522554018,16.37542778,165.25,165.18,19.4]
[1747522555323,6.05143721,165.25,165.18,25.45396966]
[1747522557729,6.05107103,165.26,165.18,25.45396966]
[1747522562334,16.3750616,165.26,165.18,25.45396966]
[1747522565331,28.97363943,165.25,165.18,19.4]
[1747522565535,10.32399057,165.24,165.17,40.3152]
[1747522565706,10.32399057,165.24,165.17,20.9352]
[1747522566734,26.0,165.21,165.14,4.32788381]
[1747522566932,26.0,165.21,165.15,19.4]
[1747522567530,6.05326876,165.2,165.15,19.4]
[1747522569333,16.37725933,165.2,165.13,5.83148381]
[1747522569642,16.37725933,165.2,165.13,25.23148381]
[1747522569939,15.62725933,165.2,165.13,25.23148381]
[1747522570146,15.62725933,165.2,165.13,5.83148381]
[1747522570341,30.76043124,165.2,165.13,23.72788381]
[1747522570515,28.97363943,165.19,165.13,4.32788381]
[1747522571440,6.05400169,165.18,165.13,4.32788381]
[1747522572027,6.05400169,165.18,165.11,25.45648262]
[1747522573232,15.13317191,165.2,165.11,25.45648262]
[1747522573233,21.18644067,165.2,165.11,25.45648262]
[1747522573636,31.51043124,165.2,165.11,25.45648262]
[1747522574032,31.51043124,165.2,165.11,6.05648262]
[1747522574236,31.51043124,165.2,165.12,19.4]
[1747522574421,31.51043124,165.2,165.12,25.45614947]
[1747522574949,6.05326876,165.2,165.12,25.45614947]
[1747522575243,32.05296031,165.21,165.12,25.45614947]
[1747522575448,32.05296031,165.21,165.13,6.3422]
[1747522575850,42.37695088,165.21,165.13,6.3422]
[1747522576451,32.05296031,165.21,165.14,6.05546808]
[1747522579157,6.05253601,165.22,165.14,6.05546808]
[1747522579338,32.05253601,165.22,165.14,6.05546808]
[1747522579728,42.37652658,165.22,165.14,6.05546808]
[1747522581051,10.2616581,165.27,165.15,1.5407]
[1747522581237,4.2510581,165.27,165.15,1.5407]
[1747522581426,6.05107103,165.26,165.15,1.5407]
[1747522582117,16.3750616,165.26,165.15,1.5407]
[1747522582731,16.3750616,165.26,165.16,6.0547348]
[1747522582939,6.05107103,165.26,165.16,6.0547348]
[1747522583128,6.05107103,165.26,165.16,21.1915718]
[1747522583346,6.05107103,165.26,165.16,22.40207654]
[1747522584352,6.05107103,165.26,165.16,26.72996035]
[1747522585435,5.99728043,165.26,165.16,26.72996035]
[1747522588825,5.99728043,165.26,165.16,72.02996035]
[1747522590332,5.99728043,165.26,165.16,67.70207654]
[1747522591426,10.32399057,165.23,165.16,51.3547348]
[1747522591623,10.32399057,165.23,165.16,19.64]
[1747522592854,6.05253601,165.22,165.16,19.64]
[1747522594255,6.05253601,165.22,165.15,1.5407]
[1747522594442,6.05253601,165.22,165.15,21.1407]
[1747522595430,6.05253601,165.22,165.15,27.19577558]
[1747522595631,6.05253601,165.22,165.15,21.1407]
[1747522595831,6.05253601,165.22,165.15,1.5407]
[1747522596055,6.05253601,165.22,165.15,21.1207]
[1747522597156,6.05253601,165.22,165.15,27.1757616]
[1747522599161,6.0521697,165.23,165.15,27.1757616]
[1747522604869,15.12728412,165.27,165.16,1.21072771]
[1747522605066,41.12728412,165.27,165.16,1.21072771]
[1747522605365,51.45127469,165.27,165.16,1.21072771]
[1747522605568,21.17874862,165.26,165.15,87.61351515]
[1747522605771,31.50273919,165.26,165.15,72.4757616]
[1747522606069,10.32399057,165.25,165.15,72.4757616]
[1747522606450,6.05180343,165.24,165.15,72.4757616]
[1747522609768,6.05180343,165.24,165.15,27.1757616]
[1747522612996,6.05143721,165.25,165.15,27.1757616]
[1747522614481,6.05143721,165.25,165.15,31.50364541]
[1747522617487,6.05143721,165.25,165.15,27.1757616]
[1747522618584,18.64964886,165.24,165.16,19.4]
[1747522618750,28.97363943,165.24,165.16,19.4]
[1747522619480,6.0521697,165.23,165.16,19.4]
[1747522619676,21.18259395,165.23,165.16,19.4]
[1747522620651,18.64964886,165.22,165.15,1.5407]
[1747522620850,18.64964886,165.22,165.14,19.4]
[1747522621054,10.32399057,165.2,165.14,19.4]
[1747522621587,6.0536352,165.19,165.13,10.67008381]
[1747522623257,6.05290236,165.21,165.13,16.72588657]
[1747522623472,6.05290236,165.21,165.13,12.39800276]
[1747522623669,6.05253601,165.22,165.13,12.39800276]
[1747522625966,26.0,165.24,165.13,27.53758975]
[1747522626170,6.05143721,165.25,165.15,1.5874]
[1747522626382,32.05143721,165.25,165.15,1.5874]
[1747522627790,32.05143721,165.25,165.16,6.0547348]
[1747522636393,25.63106182,165.27,165.17,1.21056707]
[1747522636694,6.05047351,165.28,165.19,1.5346]
[1747522636895,6.05047351,165.28,165.19,2.74486282]
[1747522636896,32.05047351,165.28,165.19,2.74486282]
[1747522637310,15.55736742,165.29,165.2,18.64964886]
[1747522637476,6.04950453,165.31,165.21,1.2100683]
[1747522637674,32.04950453,165.31,165.21,46.5100683]
[1747522637989,6.04950453,165.31,165.21,72.5100683]
[1747522638695,6.0488749,165.32,165.22,6.05253601]
[1747522640275,6.0488749,165.32,165.22,21.18387604]
[1747522640767,51.42857098,165.33,165.23,1.21006594]
[1747522640968,32.04857098,165.33,165.25,1.5658]
[1747522641498,7.64440731,165.35,165.25,1.5658]
[1747522641686,6.04704601,165.37,165.26,21.17874862]
[1747522642001,6.04704601,165.37,165.27,1.20971123]
[1747522642167,32.04704601,165.37,165.27,1.20971123]
[1747522642782,32.04704601,165.37,165.28,6.05033881]
[1747522643800,19.38,165.38,165.28,6.05033881]
[1747522643986,18.64964886,165.41,165.29,8.9595317]
[1747522644187,44.64964886,165.41,165.3,19.38]
[1747522644803,50.69523256,165.41,165.3,19.38]
[1747522645109,50.69523256,165.41,165.31,6.04924082]
[1747522646081,32.0455837,165.41,165.31,6.04924082]
[1747522646280,32.0455837,165.41,165.32,20.58941243]
[1747522647199,18.62801665,165.42,165.32,20.58941243]
[1747522647431,32.04513826,165.43,165.32,20.58941243]
[1747522648910,6.04513826,165.43,165.33,47.16978164]
[1747522649230,6.04513826,165.43,165.34,1.20921063]
[1747522649429,32.04513826,165.43,165.34,1.20921063]
[1747522649610,42.36912883,165.43,165.33,6.04850904]
[1747522650430,10.32399057,165.41,165.32,70.72875877]
[1747522650804,6.0455837,165.41,165.32,70.72875877]
[1747522651622,6.0455837,165.41,165.33,19.38]
[1747522652030,6.0455837,165.41,165.34,19.38]
[1747522653531,6.0455837,165.41,165.34,25.42808017]
[1747522653738,6.04523314,165.42,165.34,25.42808017]
[1747522654108,6.04523314,165.42,165.34,26.63725169]
[1747522654309,6.04493939,165.43,165.35,1.5648]
[1747522655435,6.04448742,165.44,165.36,6.0474117]
[1747522656835,32.04420164,165.45,165.37,1.20908698]
[1747522657019,32.04420164,165.45,165.37,20.56908698]
[1747522657429,26.0,165.45,165.38,6.04668037]
[1747522659738,33.75669682,165.49,165.38,6.04668037]
[1747522659739,6.04229607,165.5,165.38,21.1633813]
[1747522659914,26.0,165.47,165.4,6.3799]
[1747522660111,26.0,165.47,165.41,19.36]
[1747522660331,6.04229607,165.5,165.42,1.6473]
[1747522660811,26.0,165.49,165.43,6.0448528]
[1747522661338,32.04267127,165.49,165.43,6.0448528]
[1747522661737,6.04267127,165.49,165.43,6.0448528]
[1747522662248,6.04267127,165.49,165.42,7.69240244]
[1747522663261,26.0,165.49,165.42,1.6473]
[1747522663420,26.0,165.49,165.42,19.36]
[1747522663421,10.32399057,165.48,165.42,19.36]
[1747522663736,10.32399057,165.48,165.4,64.66]
[1747522663949,10.32399057,165.48,165.4,19.36]
[1747522664626,10.32399057,165.47,165.4,19.36]
[1747522664827,10.32399057,165.48,165.4,19.36]
[1747522665032,26.0,165.49,165.4,19.36]
[1747522665247,36.32399057,165.49,165.4,19.36]
[1747522665851,6.04302634,165.48,165.4,19.36]
[1747522666190,13.97993536,165.52,165.43,26.0]
[1747522666318,6.04146581,165.53,165.44,1.20846163]
[1747522666724,6.04146581,165.53,165.45,1.5927]
[1747522666924,6.04146581,165.53,165.46,19.36]
[1747522668547,6.04146581,165.53,165.46,25.40374567]
[1747522669754,15.10137606,165.55,165.46,25.40374567]
[1747522669755,6.04047115,165.55,165.46,25.40374567]
[1747522670887,6.04047115,165.55,165.46,26.61209493]
[1747522672492,16.36446172,165.55,165.46,25.40374567]
[1747522672973,16.36446172,165.55,165.46,6.04374567]
[1747522673175,16.36446172,165.55,165.47,19.36]
[1747522673570,31.46563961,165.55,165.47,19.36]
[1747522674584,21.14164904,165.55,165.47,19.36]
[1747522674777,31.46563961,165.55,165.47,19.36]
[1747522675490,21.14164904,165.55,165.47,25.40333179]
[1747522675668,6.04047115,165.55,165.47,25.40333179]
[1747522682199,26.0,165.56,165.48,1.20832538]
[1747522683796,32.04024094,165.56,165.49,6.04266118]
[1747522685296,42.36423151,165.56,165.48,6.04302634]
[1747522686199,10.32399057,165.55,165.47,19.36]
[1747522686410,10.32399057,165.55,165.47,25.40336886]
[1747522686575,10.32399057,165.55,165.47,6.04336886]
[1747522686775,10.32399057,165.55,165.48,19.34]
[1747522687393,16.36482662,165.54,165.48,19.34]
[1747522687998,31.46691674,165.54,165.48,19.34]
[1747522688992,31.46691674,165.54,165.46,19.34]
[1747522693080,31.46691674,165.54,165.46,25.38375158]
[1747522693579,31.46691674,165.54,165.46,19.34]
[1747522694713,21.14292617,165.54,165.46,19.34]
[1747522695279,31.46691674,165.54,165.46,19.34]
[1747522695805,26.0,165.53,165.46,19.34]
[1747522696006,6.04156597,165.52,165.46,19.34]
[1747522697104,6.04156597,165.52,165.46,25.38358569]
[1747522697407,54.97363943,165.56,165.46,25.38358569]
[1747522697576,44.64964886,165.56,165.46,25.38358569]
[1747522698796,50.68975516,165.56,165.46,25.38358569]
[1747522698986,76.11401149,165.56,165.46,25.38358569]
[1747522699187,10.32399057,165.54,165.45,7.63667973]
[1747522699387,10.32399057,165.54,165.46,19.34]
[1747522700119,18.64964886,165.55,165.43,31.78950164]
[1747522700120,26.0,165.52,165.43,31.78950164]
[1747522700306,26.0,165.52,165.45,19.34]
[1747522701116,6.041931,165.51,165.45,19.34]
[1747522703589,6.041931,165.51,165.45,25.38409368]
[1747522704921,6.041931,165.51,165.44,6.04448742]
[1747522705124,6.041931,165.51,165.45,19.34]
[1747522706127,6.041931,165.51,165.44,6.04448742]
[1747522706301,6.041931,165.51,165.45,25.38406441]
[1747522708629,6.041931,165.51,165.45,19.34]
[1747522709427,6.041931,165.51,165.43,6.405]
[1747522709619,18.64964886,165.5,165.43,6.405]
[1747522709934,10.32399057,165.47,165.4,4.32788381]
[1747522710114,44.64964886,165.49,165.4,29.71373197]
[1747522710115,10.32399057,165.48,165.4,29.71373197]
[1747522710431,6.04339155,165.47,165.4,25.38584816]
[1747522711129,6.04339155,165.47,165.4,19.34]
[1747522711333,6.04339155,165.47,165.4,25.38593783]
[1747522714835,142.4510581,165.54,165.42,26.0]
[1747522715040,4.2510581,165.54,165.43,2.83599546]
[1747522715410,24.69048491,165.54,165.44,26.0]
[1747522715905,50.1165656,165.54,165.43,1.6272]
[1747522716425,50.1165656,165.54,165.44,19.34]
[1747522717236,50.1165656,165.54,165.45,6.04412209]
[1747522725849,39.79257503,165.54,165.45,6.04412209]
[1747522726848,18.64964886,165.52,165.44,25.38435282]
[1747522728352,6.041931,165.51,165.44,25.38435282]
[1747522728541,6.041931,165.51,165.44,19.34]
[1747522729254,6.041931,165.51,165.44,25.38440911]
[1747522729951,6.041931,165.51,165.44,19.34]
[1747522730742,6.041931,165.51,165.44,6.04447672]
[1747522733052,6.041931,165.51,165.44,25.36447672]
[1747522733251,6.041931,165.51,165.44,19.32]
[1747522737167,6.041931,165.51,165.44,25.36441695]
[1747522738668,6.041931,165.51,165.44,19.32]
[1747522739467,18.64964886,165.5,165.43,1.6272]
[1747522739769,28.97363943,165.5,165.42,19.32]
[1747522740141,10.32399057,165.49,165.42,19.32]
[1747522740570,28.97363943,165.5,165.42,19.32]
[1747522741171,6.04266118,165.49,165.42,25.36521443]
[1747522741572,6.04266118,165.49,165.42,19.32]
[1747522741774,6.04266118,165.49,165.41,25.38549893]
[1747522742071,6.04266118,165.49,165.41,44.70549893]
[1747522742479,18.64964886,165.48,165.41,38.66]
[1747522742642,54.97363943,165.48,165.41,19.34]
[1747522742839,18.64964886,165.46,165.39,7.8635]
[1747522743043,28.97363943,165.46,165.39,27.1835]
[1747522743662,6.04412209,165.45,165.39,27.1835]
[1747522744470,6.04412209,165.45,165.38,29.69446105]
[1747522744959,6.04412209,165.45,165.38,25.36657724]
[1747522749470,6.04412209,165.45,165.39,19.32]
[1747522749680,28.97363943,165.44,165.36,6.04734952]
[1747522750058,28.97363943,165.44,165.36,25.36734952]
[1747522750257,10.32399057,165.43,165.35,57.21912365]
[1747522750657,28.97363943,165.44,165.35,52.89123984]
[1747522751276,6.0448528,165.43,165.35,52.89123984]
[1747522751466,16.36884337,165.43,165.35,52.89123984]
[1747522751661,6.0448528,165.43,165.35,52.89123984]
[1747522752889,18.64964886,165.4,165.33,4.32788381]
[1747522753185,18.64964886,165.38,165.33,4.32788381]
[1747522753767,18.64964886,165.38,165.31,1.5209]
[1747522754785,6.04704601,165.37,165.31,1.5209]
[1747522756315,6.04704601,165.37,165.31,7.57007901]
[1747522760103,6.04704601,165.37,165.31,1.5209]
[1747522762311,6.04704601,165.37,165.31,7.57000777]
[1747522763822,6.04704601,165.37,165.31,6.04910777]
[1747522764015,6.04704601,165.37,165.28,20.9482]
[1747522764016,28.97363943,165.36,165.28,20.9482]
[1747522764216,10.32399057,165.35,165.27,25.3707049]
[1747522765514,10.32399057,165.35,165.22,18.64964886]
[1747522765515,44.64964886,165.33,165.21,10.4136861]
[1747522765697,44.64964886,165.3,165.2,10.38108512]
[1747522765888,54.97363943,165.3,165.2,10.38108512]
[1747522766918,6.04997277,165.29,165.2,10.38108512]
[1747522768518,6.04997277,165.29,165.2,6.05320131]
[1747522768922,36.32399057,165.3,165.2,21.18637322]
[1747522769104,26.0,165.3,165.2,21.18637322]
[1747522769307,50.69854385,165.32,165.2,21.18637322]
[1747522770222,61.02253442,165.32,165.2,21.18637322]
[1747522772021,61.02253442,165.32,165.2,66.48637322]
[1747522772335,61.02253442,165.32,165.21,27.21016745]
[1747522772336,26.0,165.32,165.21,27.21016745]
[1747522772831,25.36852075,165.33,165.23,26.0]
[1747522772997,25.36852075,165.33,165.24,19.32]
[1747522773524,25.36852075,165.33,165.25,6.05143721]
[1747522773708,35.69251132,165.33,165.25,6.05143721]
[1747522774103,25.36852075,165.33,165.25,6.05143721]
[1747522774822,35.69251132,165.33,165.25,6.05143721]
[1747522777931,25.36852075,165.33,165.25,6.05143721]
[1747522778737,35.69251132,165.33,165.25,6.05143721]
[1747522780113,10.32399057,165.32,165.25,19.32]
[1747522780312,10.32399057,165.32,165.23,21.18240784]
[1747522780550,10.32399057,165.32,165.24,19.32]
[1747522781236,29.64399057,165.33,165.25,6.05143721]
[1747522782914,35.69260615,165.33,165.25,6.05143721]
[1747522783435,6.04800458,165.35,165.26,1.636]
[1747522783626,33.60077585,165.36,165.26,1.636]
[1747522784509,43.92476642,165.36,165.26,1.636]
[1747522784709,10.32399057,165.35,165.27,6.0507049]
[1747522786352,6.04814322,165.34,165.27,6.0507049]
[1747522789347,6.04777744,165.35,165.27,6.0507049]
[1747522791555,16.37176801,165.35,165.27,6.0507049]
[1747522792152,6.04777744,165.35,165.27,6.0507049]
[1747522794158,10.32399057,165.34,165.27,6.0507049]
[1747522794858,16.37176801,165.35,165.27,6.0507049]
[1747522796663,32.04750598,165.36,165.27,21.17746716]
[1747522796842,26.0,165.36,165.27,21.17746716]
[1747522797041,32.0474206,165.36,165.27,21.17746716]
[1747522799851,42.37141117,165.36,165.27,21.17746716]
[1747522800463,32.0474206,165.36,165.27,21.17746716]
[1747522800637,42.37141117,165.36,165.27,21.17746716]
[1747522801378,19.32,165.38,165.28,1.20978]
[1747522801542,19.32,165.38,165.29,6.4364]
[1747522801742,51.36669261,165.38,165.29,6.4364]
[1747522802867,51.36669261,165.38,165.3,6.04960677]
[1747522803170,61.69068318,165.38,165.3,6.04960677]
[1747522804849,10.32399057,165.36,165.29,12.48628175]
[1747522805174,10.32399057,165.35,165.27,6.0507049]
[1747522805382,10.32399057,165.35,165.27,25.3507049]
[1747522806481,6.04814322,165.34,165.27,25.3507049]
[1747522807382,16.37213379,165.34,165.26,52.9870217]
[1747522807579,16.37213379,165.34,165.26,72.2870217]
[1747522808284,6.04814322,165.34,165.26,72.2870217]
[1747522809473,28.97363943,165.33,165.26,46.936]
[1747522809673,10.32399057,165.32,165.26,64.6]
[1747522809979,10.32399057,165.31,165.26,19.3]
[1747522810164,36.32399057,165.32,165.26,19.3]
[1747522811286,6.04924082,165.31,165.26,19.3]
[1747522814059,11.87079057,165.34,165.26,25.35103223]
[1747522814391,26.0,165.34,165.26,25.35103223]
[1747522814592,6.0486059,165.33,165.26,25.35103223]
[1747522816286,32.0482266,165.34,165.26,25.35103223]
[1747522816481,6.04704601,165.37,165.26,73.10560982]
[1747522816679,18.64964886,165.36,165.26,73.10560982]
[1747522816877,18.64964886,165.36,165.27,1.5386]
[1747522817493,6.04777744,165.35,165.28,6.05033881]
[1747522820677,18.64964886,165.37,165.28,6.05033881]
[1747522821798,24.69669487,165.37,165.28,6.05033881]
[1747522821985,35.02068544,165.37,165.28,6.05033881]
[1747522826685,6.04704601,165.37,165.28,21.17618585]
[1747522827095,28.97363943,165.41,165.31,26.0]
[1747522827317,6.0455837,165.41,165.33,1.6056]
[1747522827818,35.01922313,165.41,165.33,1.6056]
[1747522828230,18.64964886,165.4,165.33,1.6056]
[1747522828396,18.64964886,165.37,165.32,19.28]
[1747522828713,6.0474117,165.36,165.32,19.28]
[1747522831012,24.69683331,165.37,165.3,6.04953629]
[1747522831919,24.69683331,165.37,165.3,25.32953629]
[1747522834716,35.02082388,165.37,165.3,19.28]
[1747522835422,35.02082388,165.37,165.3,25.3295861]
[1747522836924,35.02082388,165.37,165.3,19.28]
[1747522837716,35.02082388,165.37,165.3,25.32959389]
[1747522839322,24.69683331,165.37,165.3,25.32959389]
[1747522839638,6.04668037,165.38,165.3,25.32959389]
[1747522840300,16.37067094,165.38,165.3,25.32959389]
[1747522840530,6.04668037,165.38,165.3,25.32959389]
[1747522842028,26.0,165.39,165.3,25.32959389]
[1747522842215,26.0,165.39,165.31,6.602]
[1747522842415,32.04642706,165.39,165.31,6.602]
[1747522842920,26.0,165.39,165.31,6.602]
[1747522843124,24.69524468,165.41,165.31,6.602]
[1747522843510,6.04559582,165.41,165.31,6.602]
[1747522843835,6.04559582,165.41,165.32,21.17106217]
[1747522846730,6.04559582,165.41,165.32,6.0488749]
[1747522846731,35.01923525,165.41,165.32,6.0488749]
[1747522846933,10.32399057,165.4,165.32,6.0488749]
[1747522847129,10.32399057,165.39,165.32,25.3288749]
[1747522847741,16.3704346,165.39,165.32,25.3288749]
[1747522848760,16.36993978,165.4,165.32,25.3288749]
[1747522850563,35.01922313,165.41,165.32,25.3288749]
[1747522850859,10.32399057,165.4,165.32,25.3288749]
[1747522851760,6.04631477,165.39,165.32,25.3288749]
[1747522853262,6.04594921,165.4,165.32,25.3288749]
[1747522853928,16.36993978,165.4,165.32,25.3288749]
[1747522854754,6.04594921,165.4,165.32,25.3288749]
[1747522856538,6.04594921,165.4,165.32,25.3088749]
[1747522856733,16.36993978,165.4,165.32,6.0488749]
[1747522858046,16.31660201,165.4,165.32,6.0488749]
[1747522858756,6.04668037,165.38,165.32,6.0488749]
[1747522859258,6.04668037,165.38,165.31,25.862]
[1747522859259,16.37067094,165.38,165.31,6.04921182]
[1747522859838,16.37067094,165.38,165.3,19.26]
[1747522859839,6.04668037,165.38,165.3,6.04954471]
[1747522860163,16.37067094,165.38,165.3,6.04954471]
[1747522863171,6.0474117,165.36,165.29,1.6056]
[1747522863350,16.37140227,165.36,165.29,20.8656]
[1747522863548,10.32399057,165.35,165.29,1.6056]
[1747522863758,10.32399057,165.35,165.27,74.97078381]
[1747522863954,10.32399057,165.33,165.27,4.32788381]
[1747522864156,10.32399057,165.31,165.27,4.32788381]
[1747522864668,10.32399057,165.3,165.27,4.32788381]
[1747522865046,10.32399057,165.3,165.24,1.5945]
[1747522865047,6.04997277,165.29,165.24,1.5945]
[1747522868149,6.04997277,165.29,165.23,6.2401]
[1747522868343,6.04997277,165.29,165.22,19.26]
[1747522868745,26.0,165.3,165.22,19.26]
[1747522868945,18.64964886,165.31,165.22,19.26]
[1747522869260,6.04897217,165.32,165.22,19.26]
[1747522870172,16.37296274,165.32,165.23,6.0521697]
[1747522870870,6.04897217,165.32,165.23,6.0521697]
[1747522871073,34.37988408,165.35,165.24,6.095]
[1747522871074,6.04825258,165.34,165.24,6.095]
[1747522871276,6.04789536,165.35,165.24,34.90719292]
[1747522871477,6.04789536,165.35,165.24,54.16719292]
[1747522872177,6.04789536,165.35,165.25,21.18003025]
[1747522872370,6.04789536,165.35,165.26,1.20982499]
[1747522872880,19.26,165.36,165.26,1.20982499]
[1747522873260,25.30745477,165.36,165.26,1.20982499]
[1747522875277,25.30745477,165.36,165.25,21.18003025]
[1747522875880,6.04814322,165.34,165.25,21.18003025]
[1747522877760,24.6974263,165.35,165.25,21.18003025]
[1747522881483,25.3075361,165.36,165.25,21.18003025]
[1747522883155,50.69675621,165.37,165.25,22.38984659]
[1747522884288,7.69506029,165.4,165.29,33.9143]
[1747522884483,6.04562222,165.41,165.3,19.26]
[1747522884688,43.95489125,165.42,165.31,1.20942655]
[1747522886363,43.95489125,165.42,165.32,21.17106217]
[1747522888871,54.27888182,165.42,165.32,21.17106217]
[1747522889769,43.95489125,165.42,165.32,21.17106217]
[1747522892093,54.27888182,165.42,165.32,21.17106217]
[1747522894695,28.97363943,165.41,165.32,6.0488749]
[1747522894868,28.97363943,165.41,165.33,19.24]
[1747522896205,6.04497452,165.43,165.33,19.24]
[1747522896386,18.64964886,165.42,165.33,19.24]
[1747522897791,6.0455837,165.41,165.34,6.04814322]
[1747522901579,16.36957427,165.41,165.34,6.04814322]
[1747522902172,10.32399057,165.39,165.32,6.04877211]
[1747522902384,10.32399057,165.37,165.3,25.30947781]
[1747522902680,10.32399057,165.35,165.29,19.24]
[1747522903904,6.0474117,165.36,165.26,6.05107103]
[1747522903905,10.32399057,165.33,165.26,6.05107103]
[1747522904195,10.32399057,165.33,165.26,25.29107103]
[1747522904986,6.0488749,165.32,165.26,25.29107103]
[1747522906100,6.04777744,165.35,165.26,25.29107103]
[1747522906483,16.37176801,165.35,165.26,25.29107103]
[1747522906802,10.32399057,165.34,165.26,25.29107103]
[1747522907498,10.32399057,165.33,165.26,25.29107103]
[1747522907878,28.97363943,165.34,165.26,25.29107103]
[1747522908496,6.04850904,165.33,165.26,25.29107103]
[1747522909484,28.97363943,165.36,165.26,25.29107103]
[1747522910303,10.32399057,165.35,165.26,25.29107103]
[1747522910683,16.37209017,165.35,165.26,25.29107103]
[1747522910883,6.0480996,165.35,165.26,25.29107103]
[1747522911635,6.04752765,165.36,165.26,41.62858196]
[1747522912798,16.37151822,165.36,165.26,40.41874862]
[1747522914812,6.04752765,165.36,165.26,40.41874862]
[1747522915194,32.04709481,165.37,165.26,41.62851002]
[1747522915402,18.64964886,165.4,165.29,26.0]
[1747522915622,28.97363943,165.4,165.29,26.0]
[1747522915799,19.24,165.39,165.31,7.8574]
[1747522916003,6.0455837,165.41,165.32,19.24]
[1747522916918,24.6949576,165.42,165.32,20.44944493]
[1747522917315,24.6949576,165.42,165.33,6.04850904]
[1747522917501,6.04530874,165.42,165.33,6.04850904]
[1747522918721,32.04496164,165.43,165.33,21.16978164]
[1747522919019,43.93414395,165.44,165.33,21.16978164]
[1747522919224,43.93414395,165.44,165.34,1.20918539]
[1747522919798,10.32399057,165.4,165.33,6.04850904]
[1747522920004,10.32399057,165.4,165.33,25.28850904]
[1747522920513,18.64964886,165.4,165.33,25.28850904]
[1747522920919,6.04631477,165.39,165.33,25.28850904]
[1747522921329,10.32399057,165.37,165.31,4.32788381]
[1747522921511,10.32399057,165.36,165.31,4.32788381]
[1747522922332,28.97363943,165.32,165.31,4.32788381]
[1747522923218,61.02251433,165.32,165.31,4.32788381]
[1747522923722,76.1447016,165.32,165.22,6.05249993]
[1747522923922,10.32399057,165.3,165.22,6.05249993]
[1747522924237,10.32399057,165.31,165.22,6.05249993]
[1747522924551,10.32399057,165.3,165.22,6.05249993]
[1747522925008,6.04997277,165.29,165.21,6.05290236]
[1747522925408,10.32399057,165.28,165.21,6.05290236]
[1747522926610,6.0507049,165.27,165.21,6.05290236]
[1747522926809,6.0507049,165.27,165.21,25.43290236]
[1747522927605,6.05045472,165.28,165.21,25.43290236]
[1747522928716,6.04997277,165.29,165.21,25.43290236]
[1747522930530,16.37396334,165.29,165.2,6.05316891]
[1747522930738,16.37396334,165.29,165.21,19.36]
[1747522931030,16.37396334,165.29,165.2,19.36]
[1747522931929,10.32399057,165.28,165.2,19.36]
[1747522933244,10.32399057,165.25,165.16,29.62249797]
[1747522933409,10.32399057,165.23,165.16,42.94788381]
[1747522933615,10.32399057,165.23,165.16,23.70788381]
[1747522933816,6.05253601,165.22,165.15,8.199]
[1747522934025,6.05253601,165.22,165.15,27.639]